[Event "Portuguese Chess-ch 2022"]
[Site "Leiria"]
[Date "2022.09.16"]
[Round "6.2"]
[White "Fidalgo, Andre"]
[Black "Guilherme Santos, Jose"]
[Result "0-1"]
[ECO "B94"]
[WhiteElo "2258"]
[BlackElo "2384"]
[Annotator "TA"]
[PlyCount "78"]
[EventDate "2022.09.11"]
[EventCountry "POR"]
[SourceTitle "playchess.com"]
[Source "ChessBase"]
[SourceQuality "1"]
[TimeControl "5400+30"]

{[%evp 13,78,17,2,18,4,31,40,51,74,55,92,-100,-120,-117,-35,-47,-31,-36,-37,-41,-47,-39,-38,-79,-102,-285,-285,-296,-191,-209,-208,-322,-227,-238,-231,-238,-233,-228,-158,-162,-158,-156,-167,-162,-164,-161,-153,-156,-152,-215,-113,-245,-260,-264,-268,-262,-220,-885,-866,-2008,-1720,-2842,-2380,-29975,-29977,-29950,-6217]} 1. e4 {[%emt 0:00:11]} c5 {[%emt 0:04:26]} 2. Nf3 {[%emt 0:00:11]} d6 {[%emt 0:00:04]} 3. d4 {[%emt 0:00:11]} cxd4 {[%emt 0:00:06]} 4. Nxd4 {[%emt 0:00:06]} Nf6 {[%emt 0:00:07]} 5. Nc3 {[%emt 0:00:05]} a6 {[%emt 0:00:03]} 6. Bg5 {[%emt 0:00:34]} Nbd7 {[%emt 0:02:25]} 7. Bc4 {[%emt 0:00:09] 7.Qe2 is setting a new trend.} e6 {[%emt 0:02:57]} 8. Qe2 {[%emt 0:03:25] B94: Sicilian Najdorf: 6 Bg5 Nbd7.} b5 {[%emt 0:08:19][%cal Bb7b5,Bb5b4,Bb4c3][%mdl 32]} 9. Bb3 {[%emt 0:08:27]} Nc5 {[%emt 0:02:23]} 10. O-O-O {[%emt 0:06:11] White is slightly better.} Bd7 {[%emt 0:20:47] [#]} 11. f4 $146 {[%emt 0:10:48]} ({Predecessor:} 11. e5 dxe5 12. Nc6 Qc7 13. Nxe5 Be7 14. Bxf6 gxf6 15. Nxd7 Nxd7 16. Rhe1 Nc5 17. Qh5 {1-0 (40) Rehorek,M (2263)-Pribyl,M (2326) Czech Republic 2017}) 11... b4 {[%emt 0:00:30] [#]} 12. e5 $2 {[%emt 0:00:30]} (12. Nd5 $1 $16 {[%cal Oe4e5] is necessary to keep the advantage. Threatens to win with e5!} Ncxe4 (12... exd5 13. e5) 13. Nxf6+ Nxf6 14. Rhe1) 12... bxc3 $17 {[%emt 0:00:30]} 13. exf6 {[%emt 0:00:30]} Nxb3+ {[%emt 0:16:03]} ({Black should try} 13... gxf6 $17 14. Bh4 Be7 15. bxc3 Qa5) 14. cxb3 {[%emt 0:16:54] And now fxg7 would win.} gxf6 {[%emt 0:00:30]} 15. Bh4 {[%emt 0:00:30]} cxb2+ {[%emt 0:00:30]} 16. Kxb2 {[%emt 0:00:30]} Be7 {[%emt 0:06:31]} 17. Rhe1 {[%emt 0:19:34][%cal Od4f5]} Qa5 {[%emt 0:02:05] Prevents Nf5.} 18. f5 {[%emt 0:02:42][%cal Rf5e6]} e5 {[%emt 0:01:10] White is on the road to losing.} 19. Qh5 $2 {[%emt 0:03:28]} (19. Nc2 $17) 19... Rc8 $19 {[%emt 0:00:43]} ({Don't take} 19... exd4 20. Bxf6 O-O-O 21. Bxh8 (21. Rxe7 Qc3+ 22. Kb1 Bb5 $16) 21... Qc3+ 22. Kb1 $18) 20. Re2 {[%emt 0:04:02]} d5 {[%emt 0:08:38][%cal Bd6d5,Bd5d4,Bd4d3][%mdl 32]} 21. Qh6 {[%emt 0:03:47]} Bb5 {[%emt 0:06:48]} 22. Rc2 {[%emt 0:03:46] Against Qc3+} (22. Nxb5 {was the only chance.} Qxb5 23. Qh5) 22... Rxc2+ {[%emt 0:01:25]} 23. Nxc2 {[%emt 0:00:08]} d4 {[%emt 0:01:15]} 24. Bxf6 {[%emt 0:04:50]} Qc3+ {[%emt 0:00:15]} 25. Kb1 {[%emt 0:00:07] [#]} d3 $1 {[%emt 0:00:30] The board is on fire.} 26. Ne1 {[%emt 0:01:56] [#]} Qc6 $1 {[%emt 0:06:37]} ({Stronger than} 26... Ba3 27. Qd2 Qxd2 28. Rxd2 $11) 27. Bg7 {[%emt 0:02:12][%cal Bf6g7,Bg7h6,Bh6d2][%mdl 32]} Qxh6 {[%emt 0:00:13]} 28. Bxh6 {[%emt 0:00:07]} e4 {[%emt 0:00:04]} 29. g4 {[%emt 0:02:07]} Kd7 {[%emt 0:00:05]} 30. Ng2 {[%emt 0:01:04]} a5 {[%emt 0:00:33]} 31. a4 {[%emt 0:01:48] [#]} (31. Ne3 $17) 31... Bc6 {[%emt 0:00:08]} (31... Ba6 $1 $19 {White must now prevent ...Rb8.} 32. Rc1 Bb4) 32. Bd2 {[%emt 0:00:13]} (32. Ne3 $17) 32... Rb8 {[%emt 0:00:44]} 33. Ka2 {[%emt 0:00:15]} Bd5 {[%emt 0:01:34]} 34. Rb1 {[%emt 0:00:05]} Bb4 {[%emt 0:00:04]} 35. Bxb4 {[%emt 0:00:21]} (35. Bf4 Bd6 36. Bd2) 35... Rxb4 {[%emt 0:00:08]} 36. Ka3 {[%emt 0:00:05]} Kd6 {[%emt 0:00:14] Hoping for ...Ke5.} 37. Ne3 {[%emt 0:00:24]} Ke5 {[%emt 0:00:30] ( -> ...Kd4)} 38. Nxd5 {[%emt 0:03:52]} Kxd5 {[%emt 0:00:01]} 39. Kb2 {[%emt 0:00:11]} Kd4 {[%emt 0:00:26] Weighted Error Value: White=0.89/Black=0.21 (precise)} 0-1

[Event "Portuguese Chess-ch 2022"]
[Site "Leiria"]
[Date "2022.09.16"]
[Round "6.3"]
[White "Martins, Bruno Andre Leite"]
[Black "Dias, Paulo"]
[Result "0-1"]
[ECO "A45"]
[WhiteElo "2308"]
[BlackElo "2341"]
[Annotator "TA"]
[PlyCount "80"]
[EventDate "2022.09.11"]
[EventCountry "POR"]
[SourceTitle "playchess.com"]
[Source "ChessBase"]
[SourceQuality "1"]
[TimeControl "5400+30"]

{[%evp 9,80,0,0,0,0,0,0,6,6,7,5,-6,-8,-27,-31,-35,-23,-33,-41,-45,-30,-42,-21,-16,-16,-20,-7,-20,0,-15,0,-29,-24,-20,-26,-308,-310,-297,-302,-353,-339,-339,-339,-366,-352,-399,-396,-409,-294,-291,-294,-358,-342,-343,-316,-304,-230,-589,-587,-587,-580,-918,-918,-913,-913,-902,-895,-887,-880,-868,-841,-29967,-6222]} 1. d4 {[%emt 0:03:13]} Nf6 {[%emt 0:00:13]} 2. Bf4 {[%emt 0:00:42]} d5 {[%emt 0:00:48]} 3. e3 {[%emt 0:00:07]} c5 {[%emt 0:00:28]} 4. c3 {[%emt 0:00:43]} Nc6 {[%emt 0:00:08]} 5. Nd2 {[%emt 0:00:17]} Bf5 {[%emt 0:00:13]} 6. Qb3 {[%emt 0:00:35] D00: 1 d4 d5: Unusual lines.} Qd7 {[%emt 0:00:08]} 7. Ngf3 {[%emt 0:00:33]} c4 {[%emt 0:00:18]} 8. Qd1 {[%emt 0:00:50] The position is equal.} e6 {[%emt 0:00:10]} 9. Nh4 {[%emt 0:01:15]} b5 {[%emt 0:00:17]} 10. Be2 {[%emt 0:16:39]} Bd6 {[%emt 0:03:38] [#]} 11. O-O $146 {[%emt 0:11:13]} ({Predecessor:} 11. Nxf5 exf5 12. Bxd6 Qxd6 13. Qc2 Qe6 14. a4 b4 15. cxb4 Nxb4 16. Qc3 Rb8 17. b3 {½-½ (36) Stephan,J (2571)-Cruzado Duenas,C (2572) GER email 2017}) 11... Bxf4 {[%emt 0:06:06]} 12. exf4 {[%emt 0:00:06]} O-O {[%emt 0:00:58]} 13. Nxf5 {[%emt 0:06:07]} exf5 {[%emt 0:00:04]} 14. Nf3 {[%emt 0:00:51]} Qd6 {[%emt 0:15:52]} 15. Ne5 {[%emt 0:01:48]} Nd8 {[%emt 0:00:29]} 16. Qc2 {[%emt 0:01:16]} g6 {[%emt 0:01:30]} 17. g3 {[%emt 0:08:23]} Ne6 {[%emt 0:00:40]} 18. b3 {[%emt 0:07:26]} cxb3 {[%emt 0:11:16]} 19. Qxb3 {[%emt 0:01:14]} Ne4 {[%emt 0:00:58]} 20. Rfc1 {[%emt 0:10:23]} ({Don't play} 20. Bxb5 Rab8 21. Nd7 a6 22. Nxb8 (22. Nxf8 Rxb5 23. Qc2 Qxf8 $17) 22... axb5 $17) (20. Rfd1 $5 {[%cal Rf2f3]}) 20... Rab8 {[%emt 0:01:32]} 21. a3 {[%emt 0:01:48]} Rfc8 {[%emt 0:02:08][%cal Oc8c3]} 22. Rc2 {[%emt 0:05:46][%mdl 8192] [#] Now White is beyond hope.} (22. Bd3 $11 {and White is okay.}) 22... Rxc3 $1 $19 {[%emt 0:08:38][%mdl 512]} 23. Rxc3 {[%emt 0:05:21]} Nxd4 {[%emt 0:00:19] Pair of Knights!} 24. Qb2 {[%emt 0:00:38]} Nxe2+ {[%emt 0:04:02]} ({Wrong is} 24... Nxc3 $2 25. Bd1 Rc8 26. Qb4 $19) 25. Qxe2 {[%emt 0:00:15]} Nxc3 {[%emt 0:00:06]} 26. Qb2 {[%emt 0:02:14]} Rc8 {[%emt 0:02:55]} 27. Kg2 {[%emt 0:01:05]} d4 {[%emt 0:00:57]} 28. Qb3 {[%emt 0:02:52]} Qe6 {[%emt 0:01:22]} 29. Qxe6 {[%emt 0:04:49]} fxe6 {[%emt 0:00:03][%mdl 4096] Endgame KRN-KRN} 30. Rc1 {[%emt 0:00:21]} a5 {[%emt 0:03:24][%cal Ba7a5,Ba5b4,Bb4b3,Bb3b2][%mdl 32]} 31. Rc2 {[%emt 0:00:40]} b4 {[%emt 0:07:57]} 32. axb4 {[%emt 0:00:13]} axb4 {[%emt 0:00:02] aiming for ...b3.} 33. Rd2 $2 {[%emt 0:04:42]} (33. Rb2 {nothing else works.} Nd5 34. Nd3) 33... b3 {[%emt 0:01:13]} 34. Rb2 {[%emt 0:00:05]} Rb8 {[%emt 0:00:47] Threatens to win with ...Na4.} 35. Nc6 {[%emt 0:00:11]} Na4 {[%emt 0:00:43]} 36. Rb1 {[%emt 0:00:06]} Rb6 {[%emt 0:02:03]} 37. Nxd4 {[%emt 0:00:08]} b2 {[%emt 0:00:12]} 38. Ne2 {[%emt 0:00:06]} Rc6 {[%emt 0:01:12]} 39. Kf3 {[%emt 0:00:54]} Rc2 {[%emt 0:00:25][%cal Oc2e2]} 40. Re1 {[%emt 0:00:00]} Nc3 {[%emt 0:00:00] Weighted Error Value: White=0.67/Black=0.10 (very precise)} 0-1

[Event "Portuguese Chess-ch 2022"]
[Site "Leiria"]
[Date "2022.09.16"]
[Round "6.4"]
[White "Veiga, Jose Francisco R P N"]
[Black "Sousa, Andre"]
[Result "1/2-1/2"]
[ECO "C77"]
[WhiteElo "2389"]
[BlackElo "2449"]
[Annotator "TA"]
[PlyCount "157"]
[EventDate "2022.09.11"]
[EventCountry "POR"]
[SourceTitle "playchess.com"]
[Source "ChessBase"]
[SourceQuality "1"]
[TimeControl "5400+30"]

{[%evp 12,157,17,11,15,7,28,0,0,3,0,-16,-16,-23,-22,-28,-16,-60,-44,-97,-100,-104,-45,-47,-29,-46,-50,-55,-28,-51,-30,-31,-28,-90,-7,-31,-37,-60,-31,-33,0,0,22,25,23,25,50,41,100,101,103,109,103,97,107,62,72,63,62,51,51,50,50,50,50,50,50,50,50,42,39,39,50,49,72,65,74,78,87,87,87,87,87,87,87,87,87,87,87,87,87,87,87,74,74,74,74,4,4,4,20,20,20,4,8,8,21,21,21,21,21,21,21,8,37,37,37,37,37,37,37,37,37,37,37,37,37,37,37,37,74,74,74,37,91,90,90,90,90,90,90,90,90,74,90,0,0,0]} 1. e4 {[%emt 0:00:04]} e5 {[%emt 0:00:05]} 2. Nf3 {[%emt 0:01:02]} Nc6 {[%emt 0:00:04]} 3. Bb5 {[%emt 0:00:21][%cal Bf1b5,Bb5a4,Ba4b3,Bb3d5][%mdl 32]} a6 {[%emt 0:00:04]} 4. Ba4 {[%emt 0:00:12]} Nf6 {[%emt 0:00:03]} 5. d3 {[%emt 0:01:21]} b5 {[%emt 0:00:11]} 6. Bb3 {[%emt 0:00:15]} Bc5 {[%emt 0:00:07]} 7. Nc3 {[%emt 0:01:02] 7.c3 gains popularity.} h6 {[%emt 0:01:01] C77: Ruy Lopez: 3...a6 4 Ba4 Nf6, unusual lines.} 8. Nd5 {[%emt 0:01:40]} d6 {[%emt 0:01:43]} 9. Nxf6+ {[%emt 0:05:41]} Qxf6 {[%emt 0:00:16]} 10. Bd5 {[%emt 0:00:09]} Bd7 {[%emt 0:02:06]} 11. c3 {[%emt 0:00:32]} Rb8 {[%emt 0:01:34]} 12. h3 {[%emt 0:14:02]} Bb6 {[%emt 0:03:18]} 13. Bb3 {[%emt 0:12:18]} Ne7 {[%emt 0:07:50] [#]} 14. O-O $146 {[%emt 0:08:59]} ({Predecessor:} 14. Be3 g5 15. Qd2 Ng6 16. O-O-O Nf4 17. Ne1 c5 18. h4 Ke7 19. g3 Be6 20. Kb1 {½-½ (32) Prasca Sosa,R (2392)-Guerrero Sierra,J (2330) Medellin 2019}) 14... g5 $1 {[%emt 0:08:11] Strongly threatening ...g4.} 15. Nh2 {[%emt 0:01:50] Prevents g4.} (15. d4 $15) 15... h5 $1 $17 {[%emt 0:04:20][%cal Og5g4]} 16. Qf3 {[%emt 0:06:46] Inhibits g4.} Qxf3 {[%emt 0:14:45]} ({Better is} 16... Qg7 $17 {...g4 is the strong threat.} 17. Qe2 g4) 17. Nxf3 $15 {[%emt 0:00:07][%cal Bh2f3,Bf3d2,Bd2f1][%mdl 32]} f6 {[%emt 0:00:10]} 18. Be3 {[%emt 0:04:38]} Ng6 {[%emt 0:02:14]} 19. d4 {[%emt 0:03:11]} Ke7 {[%emt 0:08:33]} 20. Nd2 {[%emt 0:03:11]} Nf4 {[%emt 0:09:54]} 21. Bxf4 {[%emt 0:03:16]} exf4 {[%emt 0:02:28]} 22. Rfe1 {[%emt 0:00:44]} (22. Nf3 $11) 22... Rbe8 {[%emt 0:06:53]} (22... g4 $17) 23. Rad1 {[%emt 0:03:04]} g4 {[%emt 0:03:12]} 24. h4 {[%emt 0:01:11]} Kd8 {[%emt 0:04:40]} 25. Nf1 {[%emt 0:02:03]} Rh7 {[%emt 0:00:35]} 26. g3 $1 {[%emt 0:01:42]} Bc6 {[%emt 0:06:12]} 27. gxf4 {[%emt 0:01:42]} Bxe4 {[%emt 0:01:22]} 28. Ng3 {[%emt 0:00:58]} d5 {[%emt 0:01:03]} 29. Nxe4 {[%emt 0:00:59]} Rxe4 {[%emt 0:06:18]} ({Black should try} 29... dxe4 $14 30. f5 Kc8) 30. Bxd5 $16 {[%emt 0:00:41]} Rxe1+ {[%emt 0:00:37]} 31. Rxe1 $14 {[%emt 0:00:01][%mdl 4096] Endgame KRB-KRB} Re7 {[%emt 0:00:10]} 32. Be6 {[%emt 0:05:26]} c6 {[%emt 0:00:06]} 33. f5 {[%emt 0:01:00]} Bc7 {[%emt 0:00:32]} 34. Rd1 {[%emt 0:01:17]} Bd6 {[%emt 0:00:49]} 35. b4 {[%emt 0:00:58]} Kc7 {[%emt 0:00:12]} 36. Kf1 {[%emt 0:01:54]} Rg7 {[%emt 0:01:19]} 37. Kg2 {[%emt 0:00:59]} Kb6 {[%emt 0:00:54]} 38. Re1 {[%emt 0:00:40]} Re7 {[%emt 0:01:28]} 39. Re4 {[%emt 0:01:13]} Kc7 {[%emt 0:00:35]} 40. a3 {[%emt 0:00:00]} Kb6 {[%emt 0:00:00]} 41. Kf1 {[%emt 0:00:00]} Kc7 {[%emt 0:00:00]} 42. Re2 {[%emt 0:00:00]} Rg7 {[%emt 0:00:00]} 43. Bb3 {[%emt 0:00:00]} g3 {[%emt 0:00:00]} 44. f3 $1 {[%emt 0:00:00]} g2+ {[%emt 0:00:00]} 45. Rxg2 {[%emt 0:00:00]} Rxg2 {[%emt 0:00:00]} 46. Kxg2 $16 {[%emt 0:00:00] KB-KB} Bf4 {[%emt 0:00:00]} 47. Bf7 {[%emt 0:00:00]} Bd2 {[%emt 0:00:00]} 48. Bxh5 {[%emt 0:00:00]} Kd7 {[%emt 0:00:00] Against Be8+} 49. d5 {[%emt 0:00:00]} cxd5 {[%emt 0:00:00]} 50. Bf7 {[%emt 0:00:00]} Ke7 {[%emt 0:00:00]} 51. Bxd5 {[%emt 0:00:00] Threatens to win with h5.} Bxc3 {[%emt 0:00:00]} 52. h5 {[%emt 0:00:00]} Kf8 {[%emt 0:00:00]} 53. Bb7 {[%emt 0:03:53]} Bb2 {[%emt 0:00:11]} 54. a4 {[%emt 0:00:06]} (54. Bxa6 $16 Bxa3 55. Kh3 (55. Bxb5 Kg7 $16)) 54... bxa4 $11 {[%emt 0:00:40]} 55. Bxa6 {[%emt 0:00:07]} a3 {[%emt 0:00:36] ( -> ...a2)} 56. Bc4 {[%emt 0:00:17]} Kg7 {[%emt 0:00:05]} 57. f4 {[%emt 0:06:01]} Bd4 {[%emt 0:03:23]} 58. Kf3 {[%emt 0:00:21]} Bb6 {[%emt 0:00:02]} 59. Ke4 {[%emt 0:00:08]} Bc7 {[%emt 0:00:02]} 60. Kd4 {[%emt 0:03:06]} Kh6 {[%emt 0:00:41]} 61. Bf7 {[%emt 0:03:15]} Kg7 {[%emt 0:00:10]} 62. Be6 {[%emt 0:00:15]} Kh6 {[%emt 0:04:28]} 63. Kc3 {[%emt 0:00:40]} Bd6 {[%emt 0:00:21]} 64. Bf7 {[%emt 0:01:19]} Kg7 {[%emt 0:00:04]} 65. Ba2 $1 {[%emt 0:01:30]} Kh6 {[%emt 0:01:22]} 66. Kb3 {[%emt 0:00:10]} Kxh5 {[%emt 0:00:04]} 67. Kxa3 {[%emt 0:00:06]} Kg4 {[%emt 0:00:33]} 68. Be6 {[%emt 0:00:05]} Kxf4 {[%emt 0:01:07]} 69. Ka4 {[%emt 0:02:44]} Ke5 {[%emt 0:00:04]} 70. Kb5 {[%emt 0:01:10]} Bf8 {[%emt 0:00:58]} 71. Ka5 {[%emt 0:00:23]} Kd6 {[%emt 0:00:23]} 72. Kb6 {[%emt 0:00:03]} Bh6 {[%emt 0:00:07]} (72... Be7 $1 $14) 73. b5 {[%emt 0:00:57]} Be3+ {[%emt 0:01:14]} 74. Kb7 $1 {[%emt 0:00:08]} Kc5 {[%emt 0:00:59] [#]} 75. Bd7 $1 {[%emt 0:00:36]} Bd2 {[%emt 0:00:56] [#]} 76. Ka6 $1 {[%emt 0:00:27] Against Ba5. Black must now prevent b6.} Kd6 {[%emt 0:00:03]} 77. Be6 {[%emt 0:00:35]} Kc7 {[%emt 0:00:04]} 78. Ka7 {[%emt 0:00:06]} (78. b6+ $16 Kb8 79. Bd5) 78... Be3+ {[%emt 0:00:02]} 79. b6+ {[%emt 0:00:20] Weighted Error Value: White=0.10 (very precise) /Black=0.10 (very precise)} 1/2-1/2

[Event "Portuguese Chess-ch 2022"]
[Site "Leiria"]
[Date "2022.09.17"]
[Round "7.1"]
[White "Dias, Paulo"]
[Black "Veiga, Jose Francisco R P N"]
[Result "0-1"]
[ECO "A45"]
[WhiteElo "2341"]
[BlackElo "2389"]
[Annotator "ChessBase"]
[PlyCount "95"]
[EventDate "2022.09.11"]
[EventCountry "POR"]
[SourceTitle "playchess.com"]
[Source "ChessBase"]
[SourceQuality "1"]
[TimeControl "5400+30"]

1. d4 {[%emt 0:00:02]} Nf6 {[%emt 0:03:54]} 2. g3 {[%emt 0:00:06]} g6 {[%emt 0:00:19]} 3. Bg2 {[%emt 0:00:07]} Bg7 {[%emt 0:00:09]} 4. e4 {[%emt 0:00:45]} d6 {[%emt 0:01:12]} 5. Nc3 {[%emt 0:00:14]} O-O {[%emt 0:00:15]} 6. Nge2 {[%emt 0:00:04]} c5 {[%emt 0:01:41]} 7. d5 {[%emt 0:09:55]} e6 {[%emt 0:03:59]} 8. dxe6 {[%emt 0:03:37]} fxe6 {[%emt 0:00:48]} 9. e5 {[%emt 0:14:47]} dxe5 {[%emt 0:04:34]} 10. Qxd8 {[%emt 0:00:54]} Rxd8 {[%emt 0:00:04]} 11. Be3 {[%emt 0:03:31]} Nbd7 {[%emt 0:15:17]} 12. O-O-O {[%emt 0:01:01]} Ng4 {[%emt 0:01:58]} 13. Bh3 {[%emt 0:09:39]} Nxe3 {[%emt 0:01:46]} 14. Bxe6+ {[%emt 0:00:11]} Kf8 {[%emt 0:17:13]} 15. fxe3 {[%emt 0:00:08]} Ke8 {[%emt 0:02:37]} 16. Nb5 {[%emt 0:16:24]} Ke7 {[%emt 0:03:34]} 17. Nec3 {[%emt 0:04:26]} Nf6 {[%emt 0:02:36]} 18. Rxd8 {[%emt 0:02:21]} Kxd8 {[%emt 0:00:01]} 19. Rd1+ {[%emt 0:00:42]} Ke7 {[%emt 0:00:05]} 20. Bxc8 {[%emt 0:00:27]} Rxc8 {[%emt 0:00:04]} 21. Nxa7 {[%emt 0:00:14]} Rf8 {[%emt 0:01:44]} 22. e4 {[%emt 0:05:09]} Bh6+ {[%emt 0:00:45]} 23. Kb1 {[%emt 0:00:08]} Ng4 {[%emt 0:00:04]} 24. Nd5+ {[%emt 0:02:12]} Ke6 {[%emt 0:00:31]} 25. a4 {[%emt 0:04:41]} Nxh2 {[%emt 0:03:59]} 26. Nc7+ {[%emt 0:04:08]} Ke7 {[%emt 0:01:43]} 27. Nd5+ {[%emt 0:00:22]} Ke6 {[%emt 0:02:57]} 28. Nc7+ {[%emt 0:00:05]} Ke7 {[%emt 0:04:02]} 29. a5 {[%emt 0:00:05]} Nf3 {[%emt 0:02:07]} 30. Rd5 {[%emt 0:06:37]} Be3 {[%emt 0:04:25]} 31. Rd3 {[%emt 0:02:51]} Bd4 {[%emt 0:00:59]} 32. c3 {[%emt 0:01:28]} c4 {[%emt 0:00:13]} 33. Nd5+ {[%emt 0:02:56]} Ke6 {[%emt 0:01:24]} 34. Rxf3 {[%emt 0:02:01]} Rxf3 {[%emt 0:00:40]} 35. cxd4 {[%emt 0:00:02]} exd4 {[%emt 0:00:12]} 36. Nb5 {[%emt 0:01:59]} Rf1+ {[%emt 0:01:13]} 37. Ka2 {[%emt 0:02:50]} d3 {[%emt 0:00:11]} 38. Ne3 {[%emt 0:00:59]} d2 {[%emt 0:00:27]} 39. Nc3 {[%emt 0:00:53]} Rf3 {[%emt 0:00:05]} 40. Ncd1 {[%emt 0:00:00]} Rxg3 {[%emt 0:00:00]} 41. Kb1 {[%emt 0:00:00]} h5 {[%emt 0:00:00]} 42. Kc2 {[%emt 0:00:00]} h4 {[%emt 0:00:00]} 43. Kxd2 {[%emt 0:00:00]} h3 {[%emt 0:00:00]} 44. Nf2 {[%emt 0:00:00]} h2 {[%emt 0:00:00]} 45. Ke2 {[%emt 0:00:00]} Rg1 {[%emt 0:00:00]} 46. Kf3 {[%emt 0:00:00]} g5 {[%emt 0:00:00]} 47. Ke2 {[%emt 0:00:10]} g4 {[%emt 0:00:00]} 48. Nexg4 0-1

[Event "Portuguese Chess-ch 2022"]
[Site "Leiria"]
[Date "2022.09.17"]
[Round "7.2"]
[White "Guilherme Santos, Jose"]
[Black "Martins, Bruno Andre Leite"]
[Result "1/2-1/2"]
[ECO "B12"]
[WhiteElo "2384"]
[BlackElo "2308"]
[Annotator "ChessBase"]
[PlyCount "37"]
[EventDate "2022.09.11"]
[EventCountry "POR"]
[SourceTitle "playchess.com"]
[Source "ChessBase"]
[SourceQuality "1"]
[TimeControl "5400+30"]

1. e4 {[%emt 0:06:44]} c6 {[%emt 0:00:17]} 2. d4 {[%emt 0:00:09]} d5 {[%emt 0:00:11]} 3. e5 {[%emt 0:00:09]} Bf5 {[%emt 0:00:12]} 4. h4 {[%emt 0:00:05]} h5 {[%emt 0:00:09]} 5. Bd3 {[%emt 0:00:10]} Bxd3 {[%emt 0:00:16]} 6. Qxd3 {[%emt 0:00:14]} Qa5+ {[%emt 0:00:10]} 7. b4 {[%emt 0:00:12]} Qxb4+ {[%emt 0:00:17]} 8. Nd2 {[%emt 0:00:07]} e6 {[%emt 0:00:34]} 9. Rb1 {[%emt 0:00:09]} Qe7 {[%emt 0:00:10]} 10. c4 {[%emt 0:00:03]} Nh6 {[%emt 0:00:27]} 11. Ne2 {[%emt 0:00:08]} Nf5 {[%emt 0:00:24]} 12. Ng3 {[%emt 0:00:11]} Nxh4 {[%emt 0:00:31]} 13. Nde4 {[%emt 0:00:50]} dxe4 {[%emt 0:01:08]} 14. Nxe4 {[%emt 0:00:06]} Qd8 {[%emt 0:00:57]} 15. Bg5 {[%emt 0:00:31]} Qa5+ {[%emt 0:00:13]} 16. Bd2 {[%emt 0:00:15]} Qd8 {[%emt 0:00:10]} 17. Bg5 {[%emt 0:00:10]} Qa5+ {[%emt 0:00:11]} 18. Bd2 {[%emt 0:00:06]} Qd8 {[%emt 0:00:10]} 19. Bg5 1/2-1/2